Cogmind - Beta 17.1 @@@ ROGUE MODE // 2026.09.21 @ 19:48:45 Player: Caluan Result: Self-destructed Performance ------------- Evolutions (6) 3000 Regions Visited (11) 2200 Robots Destroyed (118) 590 Value Destroyed (4126) 4126 Prototype IDs (9) 180 Alien Tech Used (0) 0 Bonus (1367) 1367 TOTAL SCORE: 11463 Bonus ------- Follower Combat Kills 567 Registered with UFD 300 Met Optimus in HQ 500 Cogmind --------- Core Integrity 1150/1150 Matter 137/300 Energy 3/150 System Corruption 0% Temperature Cool (14) Movement Hovering (44) Location -4/Factory Parts ------- > --- POWER (1) -------- Light Angular Momentum Engine > --- PROPULSION (5) --- Improved Antigrav System Improved Antigrav System Improved Antigrav System Improved Antigrav System Improved Antigrav System > --- UTILITY (10) ----- Hacking Suite Improved Hacking Suite > --- WEAPON (3) ------- (None) > --- INVENTORY (5) ---- Improved Antigrav System Biomechanical Wings High-capacity Storage Unit Tiamat Missile Launcher Heavy Mace Peak State ------------ > --- POWER ------------ Improved Deuterium Engine > --- PROPULSION ------- Improved Gravmag System Gravmag Array Gravmag Array > --- UTILITY ---------- Large Storage Unit Machine Analyzer Advanced Terrain Scanner Improved Melee Analysis Suite Advanced Melee Analysis Suite Core Analyzer A0-MCA's Component Scanner > --- WEAPON ----------- Heavy Mace Axe > --- INVENTORY -------- Improved Gravmag System Improved Gravmag System Improved Gravmag System Gravmag Array High-capacity Storage Unit Advanced Trap Scanner Improved Trap Extractor Drone Bay Mapping Drone Bay Grenade Launcher Improved Grenade Launcher Datajack CPS Tube CPS Tube [Rating: 71] Favorites ----------- Power Ion Engine Engine Ion Engine Power Core Light Nuclear Core Propulsion Aluminum Leg Treads Light Treads Leg Aluminum Leg Hover Unit Gravmag Array Flight Unit Biomechanical Wings Utility Large Storage Unit Device Advanced Terrain Scanner Storage Large Storage Unit Processor Advanced Melee Analysis Suite Hackware Hacking Suite Protection Medium Armor Plating Weapon Heavy Hammer Energy Gun Medium Laser Ballistic Gun Assault Rifle Launcher Grenade Launcher Special Weapon CPS Tube Impact Weapon Heavy Hammer Slashing Weapon Mining Claw Special Melee Weapon Datajack Build | -11 -10 -10 -9 -9 -8 -8 -8 -8 -6 -5 -4 ------- Run | Yrd Mat Min Mat Min Mat Sto Rec Scr Fac Fac Fac Slots Evolved 12 | . . . 2 . 2 . . . 4 2 2 Power . | . . . . . . . . . . . . Propulsion 3 | . . . . . 2 . . . 1 . . Utility 8 | . . . 2 . . . . . 3 1 2 Weapon 1 | . . . . . . . . . . 1 . Parts Attached 102 | 6 4 . 6 3 22 17 1 5 25 7 6 Power 12 | 1 . . 1 1 2 3 . . 2 2 . Engine 9 | 1 . . 1 1 2 1 . . 2 1 . Core 3 | . . . . . . 2 . . . 1 . Reactor . | . . . . . . . . . . . . Propulsion 40 | 2 . . 2 1 11 4 . 1 12 2 5 Treads 3 | 2 . . . . . . . . . 1 . Leg 21 | . . . 2 1 11 4 . 1 2 . . Wheel . | . . . . . . . . . . . . Hover 13 | . . . . . . . . . 7 1 5 Flight 3 | . . . . . . . . . 3 . . Utility 36 | 1 2 . 1 . 8 8 . 4 8 3 1 Device 9 | . . . . . 1 1 . 3 3 1 . Storage 3 | 1 1 . . . . . . . . . 1 Processor 5 | . . . . . . . . 1 4 . . Hackware 4 | . . . . . . 1 . . 1 2 . Protection 15 | . 1 . 1 . 7 6 . . . . . Artifact . | . . . . . . . . . . . . Weapon 14 | 2 2 . 2 1 1 2 1 . 3 . . Energy Gun 1 | 1 . . . . . . . . . . . Energy Cannon . | . . . . . . . . . . . . Ballistic Gun 1 | 1 . . . . . . . . . . . Ballistic Cannon . | . . . . . . . . . . . . Launcher 3 | . 1 . 1 . . . 1 . . . . Special Weapon 1 | . . . . . . . . . 1 . . Impact Weapon 5 | . . . 1 1 1 1 . . 1 . . Slashing Weapon 2 | . 1 . . . . . . . 1 . . Piercing Weapon . | . . . . . . . . . . . . Special Melee Weapon 1 | . . . . . . 1 . . . . . Unidentified Prototypes . | . . . . . . . . . . . . Corrupted Parts 5 | . . . . . 4 1 . . . . . System Corruption 15 | . . . . . 12 3 . . . . . Parts Lost 52 | . . . 3 2 14 10 . . 17 6 . Power 9 | . . . 1 1 3 2 . . 2 . . Propulsion 24 | . . . . 1 8 5 . . 8 2 . Utility 16 | . . . 2 . 2 3 . . 5 4 . Weapon 3 | . . . . . 1 . . . 2 . . Highest Loss Streak 12 | . . . 2 2 6 3 . . 12 3 . To Critical Strikes . | . . . . . . . . . . . . Average Backups 9 | 1 3 5 9 11 10 10 12 13 11 4 5 Power . | . 1 1 . . . . . . . . . Propulsion 1 | . . 1 5 7 3 1 1 1 1 . 1 Utility 2 | . . . . . 1 4 6 6 4 1 . Weapon 2 | . 1 2 2 2 3 4 4 3 2 1 2 Tool/Special . | . . . . . . . . . . . . Unused Backups 14 | . 4 . 1 1 . . . 3 2 . 3 Power 1 | . . . . 1 . . . . . . . Propulsion 4 | . 1 . 1 . . . . . 1 . 1 Utility 4 | . 1 . . . . . . 2 1 . . Weapon 4 | . 2 . . . . . . 1 . . 1 Tool/Special 1 | . . . . . . . . . . . 1 Average Slot Usage (%) 81 | . 87 85 68 65 77 89 100 95 80 41 41 Engine 5 | . 14 14 9 10 7 2 . . 4 . 3 Core 2 | . . . . . . 3 9 9 . . . Treads 4 | . 28 28 6 . . . . . . . . Leg 21 | . . . 15 21 32 30 36 36 18 . . Hover 1 | . . . . . . . . . 4 3 21 Device 2 | . . . . . 1 . . 3 5 6 2 Storage 8 | . 14 14 11 11 9 9 9 9 5 . 2 Processor 5 | . . . . . . . . 7 21 14 . Hackware 1 | . . . . . . 2 . . 4 5 10 Protection 10 | . 13 14 5 . 9 22 27 12 1 . . Impact Weapon 11 | . . . 9 15 17 17 17 18 7 . . Slashing Weapon 3 | . 10 14 10 6 . . . . 3 . . Peak Build Rating 71 | 6 7 6 10 11 19 22 21 35 71 54 56 Average Rating 22 | 3 6 6 8 9 13 18 21 25 52 39 48 On Entrance 16 | . 6 6 6 9 10 14 21 21 35 38 28 Avg Prop Armor Cover (%) 10 | . . . . . 8 . . . 10 11 17 Naked Turns . | . . . . . . . . . . . . Heaviest Build 55 | 14 32 30 35 32 37 54 55 52 47 13 52 Greatest Support 66 | 40 40 40 40 26 52 43 40 46 66 14 62 Greatest Overweight (x) 2 | . . . 1 1 2 1 1 1 1 1 1 Average Overweight (x) . | . . . . 1 . . 1 . . . . Largest Inventory Capacity 20 | 8 15 15 15 15 15 15 15 15 15 5 20 Average Capacity 13 | 5 14 15 15 15 15 15 15 15 13 5 12 Most Carried 15 | 3 6 5 12 14 12 14 12 15 15 5 7 Average Carried 9 | 1 3 5 9 11 9 10 12 14 12 4 5 Final Capacity 15 | 8 15 15 15 15 15 15 15 15 5 5 5 Final Carried 15 | 2 5 5 11 12 8 12 12 15 5 5 5 Class Distribution -------------------- 49% | Mutant 25% | Scavenger-Gladiator 22% | Scavenger-Mutant Dominant Class ---------------- Mutant | -10/Materials Mutant | -10/Mines Mutant | -9/Materials Mutant | -9/Mines Mutant | -8/Materials Scavenger-Mutant | -8/Storage Scavenger-Mutant | -8/Recycling Scavenger-Gladiator | -8/Scraptown Scavenger-Gladiator | -6/Factory Mutant | -5/Factory Hacker-Mutant | -4/Factory Resources | -11 -10 -10 -9 -9 -8 -8 -8 -8 -6 -5 -4 ----------- Run | Yrd Mat Min Mat Min Mat Sto Rec Scr Fac Fac Fac Matter Collected 1697 | 194 214 . 100 30 215 327 . 62 505 50 . Remotely . | . . . . . . . . . . . . Salvage Created 4591 | . 365 . 301 258 1346 1193 . . 1056 72 . Parts 173 | . 33 . 11 12 40 37 . . 39 1 . Haulers Intercepted 6 | . . . 2 . 1 3 . . . . . Recyclers Shooed 2 | . . . . . 1 1 . . . . . Parts Field Recycled . | . . . . . . . . . . . . Retrieved Matter . | . . . . . . . . . . . . Parts Self-Destructed . | . . . . . . . . . . . . Prevented . | . . . . . . . . . . . . Parts Restored . | . . . . . . . . . . . . Kills | -11 -10 -10 -9 -9 -8 -8 -8 -8 -6 -5 -4 ------- Run | Yrd Mat Min Mat Min Mat Sto Rec Scr Fac Fac Fac Combat Hostiles Destroyed 91 | . 12 . 7 5 22 21 . . 20 4 . Melee 41 | . 1 . 2 4 10 11 . . 10 3 . Guns 2 | . 2 . . . . . . . . . . Cannons 1 | . . . . . 1 . . . . . . AOE 13 | . 9 . 4 . . . . . . . . Classes Destroyed 13 | . 5 . 2 . 3 1 . . 2 . . Worker 3 | . . . . . 2 . . . 1 . . Tunneler 3 | . 1 . . 1 . . . . 1 . . Hauler 6 | . . . 2 . 1 3 . . . . . Recycler 4 | . . . . . 2 2 . . . . . Mechanic 1 | . . . . . . . . . 1 . . Operator 6 | . 1 . . . 2 . . . 3 . . Watcher 4 | . 2 . . . 1 . . . 1 . . Swarmer 15 | . 4 . . . . . . . 7 4 . Grunt 52 | . 8 . 5 5 15 11 . . 8 . . Brawler 1 | . . . . . 1 . . . . . . Duelist 1 | . . . . . . . . . 1 . . Sentry 20 | . . . 2 . 6 9 . . 3 . . Hunter 2 | . . . . . . 1 . . 1 . . Best Kill Streak 10 | . 7 . 6 2 6 5 . . 10 4 . Combat Bots Only 7 | . 6 . 4 1 5 3 . . 7 4 . Max Kills in Single Turn 3 | . 3 . 3 1 1 1 . . 1 1 . Gunslinging . | . . . . . . . . . . . . Exploded 3 | . 3 . 2 . . . . . . . . Melee 1 | . 1 . 1 1 1 1 . . 1 1 . Uniques/NPCs Destroyed . | . . . . . . . . . . . . Combat | -11 -10 -10 -9 -9 -8 -8 -8 -8 -6 -5 -4 -------- Run | Yrd Mat Min Mat Min Mat Sto Rec Scr Fac Fac Fac Hostile Shots Fired 766 | . 26 . 49 18 136 146 . . 290 86 15 Missed 233 | . 4 . 13 1 23 47 . . 97 41 7 Hits 533 | . 22 . 36 17 113 99 . . 193 45 8 Melee 3 | . . . . . 1 . . . 2 . . Projectile 530 | . 22 . 36 17 112 99 . . 191 45 8 Critical Strikes 21 | . 1 . . . 7 5 . . 8 . . Actively Blocked 5 | . . . . . . 5 . . . . . Damage Taken 7923 | . 242 . 542 256 1711 1526 6 . 2682 830 128 Core 1990 | . 87 . 86 46 301 243 . . 729 498 . Absorbed by Shields 75 | . . . . . 75 . . . . . . Redirected to Shielding 280 | . . . . . 30 250 . . . . . Regen/Repaired (Parts) 288 | . . . . . . 272 . . 16 . . Core Remaining (%) 49 | 100 . 65 . 67 . . . 1 14 50 . Volleys Fired 19 | . 12 . 3 . . . 3 . 1 . . Largest 2 | . 2 . 1 . . . 1 . 1 . . Hottest 70 | . 70 . 30 . . . 36 . . . . Shots Fired 24 | . 18 . 3 . . . 2 . 1 . . Gun 12 | . 12 . . . . . . . . . . Cannon . | . . . . . . . . . . . . Launcher 11 | . 6 . 3 . . . 2 . . . . Special 1 | . . . . . . . . . 1 . . Kinetic 6 | . 6 . . . . . . . . . . Thermal 6 | . 6 . . . . . . . . . . Explosive 11 | . 6 . 3 . . . 2 . . . . Electromagnetic . | . . . . . . . . . . . . Robot Hit Streak 9 | . 6 . 8 . . . . . 9 . . Robot Miss Streak 4 | . 4 . . . . . . . . . . Penetration Max . | . . . . . . . . . . . . Secondary Targets . | . . . . . . . . . . . . Shots Hit Robots 302 | . 16 . 18 14 86 82 . . 75 11 . Core Hits 88 | . 24 . 13 6 16 11 . . 18 . . Critical Kills 9 | . . . . . 2 5 . . 2 . . Critical Parts Destroyed 37 | . . . 2 . 13 10 . . 12 . . Critical Strikes 47 | . . . 2 . 15 15 . . 15 . . Smash 46 | . . . 2 . 15 15 . . 14 . . Sever 1 | . . . . . . . . . 1 . . Melee Attacks 374 | . 12 . 24 20 96 100 4 . 101 17 . Impact 303 | . . . 3 10 96 100 4 . 73 17 . Slashing 71 | . 12 . 21 10 . . . . 28 . . Piercing . | . . . . . . . . . . . . Sneak Attacks 28 | . 4 . 1 2 9 8 . . 3 1 . Combat Hostiles 2 | . . . . 1 . . . . . 1 . Follow-up Attacks 49 | . . . 3 1 17 17 . . 11 . . Damage Inflicted 11855 | . 950 . 729 405 2717 3475 . . 3023 556 . Guns 89 | . 89 . . . . . . . . . . Cannons . | . . . . . . . . . . . . Explosions 952 | . 563 . 389 . . . . . . . . Melee 10807 | . 298 . 340 405 2716 3475 . . 3023 550 . Ramming 7 | . . . . . 1 . . . . 6 . Kinetic 52 | . 52 . . . . . . . . . . Thermal 37 | . 37 . . . . . . . . . . Explosive 952 | . 563 . 389 . . . . . . . . Electromagnetic . | . . . . . . . . . . . . Impact 9183 | . . . 60 217 2716 3475 . . 2165 550 . Slashing 1624 | . 298 . 280 188 . . . . 858 . . Piercing . | . . . . . . . . . . . . Highest Corruption 15 | . . . . . 12 15 15 15 . . . Average Corruption 13 | . . . . . 11 12 15 13 . . . Corruption Purged 2 | . . . . . . . . 2 . . . Corruption Blocked . | . . . . . . . . . . . . Effects 141 | . . . . . 3 57 19 62 . . . Message Errors 34 | . . . . . . 14 3 17 . . . Matter Fused 40 | . . . . . . 15 7 18 . . . Heat Flow Errors 21 | . . . . . 1 4 4 12 . . . Energy Discharges 17 | . . . . . 2 10 2 3 . . . Parts Rejected 1 | . . . . . . 1 . . . . . Parts Fused 1 | . . . . . . 1 . . . . . Data Loss (minor) 11 | . . . . . . 5 1 5 . . . Data Loss (major) 6 | . . . . . . 4 . 2 . . . Alerts 9 | . . . . . . 3 1 5 . . . Weapon Failures 1 | . . . . . . . 1 . . . . Overload Shots . | . . . . . . . . . . . . Overflow Damage 2756 | . 28 . 35 28 664 956 . . 795 250 . Projectiles . | . . . . . . . . . . . . Explosions . | . . . . . . . . . . . . Melee 2756 | . 28 . 35 28 664 956 . . 795 250 . Knockbacks 32 | . . . . 1 10 8 . . 12 1 . Impact 29 | . . . . 1 9 8 . . 10 1 . Kinetic . | . . . . . . . . . . . . Secondary 3 | . . . . . 1 . . . 2 . . Self-Inflicted Damage 31 | . 22 . . . . . 6 . . 3 . Shots 2 | . 1 . . . . . 1 . . . . Rammed 1 | . . . . . . . . . . 1 . Targets Rammed 2 | . . . . . 1 . . . . 1 . Kicked 1 | . . . . . 1 . . . . . . Crushed . | . . . . . . . . . . . . Highest Temperature 267 | . 102 . . . 139 240 265 267 13 . 4 Average Temperature 88 | . 36 . . . 54 108 106 91 7 . 4 Received Heat Transfer 3034 | . 66 . 225 144 1006 675 . . 792 126 . Siege Activations . | . . . . . . . . . . . . Martial Activations . | . . . . . . . . . . . . Shielding Activations . | . . . . . . . . . . . . Robots Disrupted . | . . . . . . . . . . . . Combat Hostiles . | . . . . . . . . . . . . Robots Corrupted 45 | . . . 1 2 14 13 . . 14 1 . Combat Hostiles 34 | . . . 1 1 11 10 . . 10 1 . Parts Fried 59 | . . . . 3 20 15 . . 19 2 . Impact Corruptions 108 | . . . 2 2 30 34 . . 33 7 . Robots Melted . | . . . . . . . . . . . . Combat Hostiles . | . . . . . . . . . . . . Parts Melted 1 | . . . 1 . . . . . . . . Heat Transferred 111 | . 111 . . . . . . . . . . Parts Sabotaged . | . . . . . . . . . . . . Parts Stolen . | . . . . . . . . . . . . Parts Stripped . | . . . . . . . . . . . . Power Chain Reactions . | . . . . . . . . . . . . Alert | -11 -10 -10 -9 -9 -8 -8 -8 -8 -6 -5 -4 ------- Run | Yrd Mat Min Mat Min Mat Sto Rec Scr Fac Fac Fac Maximum Alert Level 2 | . . . 1 . . . . . 2 1 . Low Security (%) 89 | 100 100 100 78 100 100 100 100 . 74 51 100 Level 1 9 | . . . 21 . . . . . 17 48 . Level 2 1 | . . . . . . . . . 8 . . Level 3 . | . . . . . . . . . . . . Level 4 . | . . . . . . . . . . . . Level 5 . | . . . . . . . . . . . . High Security . | . . . . . . . . . . . . Max Security . | . . . . . . . . . . . . Peak Influence 470 | . 170 17 264 55 181 129 40 . 470 292 129 Initial 228 | . . 17 . 30 . 57 40 . . 228 124 Average 78 | . 42 1 154 17 71 60 3 . 108 188 112 Influence Increases 3805 | . 347 . 512 180 669 681 19 . 943 409 45 Destroy 0b10 Robot/C 2240 | . 240 . 340 100 440 420 . . 560 140 . Destroy 0b10 Robot/NC 140 | . 20 . 10 5 40 25 . . 35 5 . Destroy Leader 550 | . 54 . 94 30 114 126 . . 112 20 . Allied During Kill 110 | . . . 41 . . . . . 32 37 . Trap Triggered on 0b10 10 | . . . . . . . . . 10 . . Successful Hack 92 | . 9 . 8 . . 5 5 . 44 21 . Disable Machine 75 | . . . 15 . . 30 . . . 30 . Destroy Structure 63 | . 24 . 4 . . . 14 . 15 6 . Partial Spotted 15 | . . . . . . . . . 15 . . Lose Combat Pursuer 510 | . . . . 45 75 75 . . 120 150 45 Influence Decreases 3676 | . 302 45 434 258 532 713 124 . 476 621 171 Entered New Map 591 | . . 28 . 48 . 80 65 . . 239 131 Time Decay 2471 | . 302 17 344 190 395 533 59 . 289 302 40 Lost Part 514 | . . . 30 20 137 100 . . 167 60 . Lost Ally 100 | . . . 60 . . . . . 20 20 . Squads Dispatched 29 | . 2 . 2 . 4 1 . . 13 7 . Investigation 7 | . . . . . . . . . 3 4 . Extermination 4 | . . . . . . . . . 3 1 . Reinforcement 17 | . 2 . 2 . 4 1 . . 6 2 . Assault . | . . . . . . . . . . . . Garrison 1 | . . . . . . . . . 1 . . Intercept . | . . . . . . . . . . . . Searches Triggered . | . . . . . . . . . . . . Construction Impeded . | . . . . . . . . . . . . Haulers Reinforced . | . . . . . . . . . . . . Active Scanning Responses . | . . . . . . . . . . . . Cargo Convoy Interrupts . | . . . . . . . . . . . . Stealth | -11 -10 -10 -9 -9 -8 -8 -8 -8 -6 -5 -4 --------- Run | Yrd Mat Min Mat Min Mat Sto Rec Scr Fac Fac Fac Distress Signals 12 | . 2 . 1 1 3 3 . . 2 . . Communications Jammed . | . . . . . . . . . . . . Distress Signals . | . . . . . . . . . . . . Times Spotted 214 | . 20 . 24 7 32 33 . . 54 37 7 Peak Tracking Total 13 | . 8 . 6 2 6 6 . . 9 13 5 Tactical Retreats 23 | . . . . 3 5 4 . . 6 4 1 Traps | -11 -10 -10 -9 -9 -8 -8 -8 -8 -6 -5 -4 ------- Run | Yrd Mat Min Mat Min Mat Sto Rec Scr Fac Fac Fac Traps Triggered 3 | . . . . . . . . . 2 1 . Indirectly . | . . . . . . . . . . . . Trap Hack Attempts 38 | . . . . . . 38 . . . . . Triggered . | . . . . . . . . . . . . Disarmed . | . . . . . . . . . . . . Reprogrammed 4 | . . . . . . 4 . . . . . Reused 1 | . . . . . . . . . 1 . . Traps Extracted 4 | . . . . . . 4 . . . . . Installed 2 | . . . . . . . . . 2 . . Triggered 1 | . . . . . . . . . 1 . . Most Traps Carried 4 | . . . . . . 4 4 4 4 . . Machines | -11 -10 -10 -9 -9 -8 -8 -8 -8 -6 -5 -4 ---------- Run | Yrd Mat Min Mat Min Mat Sto Rec Scr Fac Fac Fac Machines Disabled 5 | . . . 1 . . 2 . . . 2 . Max in Single Turn 1 | . . . 1 . . 1 . . . . . Garrison Access 1 | . . . . . . . . . 1 . . Machines Repaired . | . . . . . . . . . . . . Machines Dismantled . | . . . . . . . . . . . . Machines Sabotaged . | . . . . . . . . . . . . Overloaded Fab Kills . | . . . . . . . . . . . . Hacking | -11 -10 -10 -9 -9 -8 -8 -8 -8 -6 -5 -4 --------- Run | Yrd Mat Min Mat Min Mat Sto Rec Scr Fac Fac Fac Machines Accessed 47 | . 2 . 4 1 2 5 3 4 19 7 . Terminals 23 | . 2 . 3 1 . 3 2 . 10 2 . Fabricators 4 | . . . . . . . . . 2 2 . Repair Stations 4 | . . . . . . 2 . . 2 . . Recycling Units 7 | . . . . . 1 . 1 . 3 2 . Scanalyzers 2 | . . . 1 . 1 . . . . . . Garrison Access 3 | . . . . . . . . . 2 1 . Total Hacks 124 | . 6 . 11 3 6 15 3 33 33 14 . Successful 77 | . 2 . 6 . 4 11 2 33 14 5 . Failed 46 | . 4 . 4 3 2 4 1 . 19 9 . Catastrophic 8 | . 1 . . . 1 . . . 4 2 . Database Lockouts 1 | . . . 1 . . . . . . . . Manual 48 | . 2 . 7 . 1 4 2 . 20 12 . Terminals 47 | . 6 . 8 3 . 6 2 . 17 5 . Fabricators 10 | . . . . . . . . . 6 4 . Repair Stations 13 | . . . . . . 9 . . 4 . . Recycling Units 10 | . . . . . 3 . 1 . 3 3 . Scanalyzers 6 | . . . 3 . 3 . . . . . . Garrison Access 5 | . . . . . . . . . 3 2 . Terminal Hacks 41 | . . . 1 . . 3 . 33 3 1 . Record 34 | . . . 1 . . . . 33 . . . Open Door 2 | . . . . . . 1 . . 1 . . Alert Level 1 | . . . . . . 1 . . . . . Locate Traps 1 | . . . . . . 1 . . . . . Extermination Status 1 | . . . . . . . . . 1 . . Recall Extermination 1 | . . . . . . . . . . 1 . Recall Reinforcements 1 | . . . . . . . . . 1 . . Fabricator Hacks . | . . . . . . . . . . . . Repair Station Hacks 9 | . . . . . . 6 . . 3 . . Scan Component 5 | . . . . . . 3 . . 2 . . Repair 4 | . . . . . . 3 . . 1 . . Recycling Unit Hacks 2 | . . . . . 1 . 1 . . . . Report Inventory 1 | . . . . . . . 1 . . . . Retrieve Components 1 | . . . . . 1 . . . . . . Scanalyzer 4 | . . . 2 . 2 . . . . . . Retrieve Study 4 | . . . 2 . 2 . . . . . . Garrison Access Hacks 1 | . . . . . . . . . 1 . . Seal Access 1 | . . . . . . . . . 1 . . Unauthorized Hacks 20 | . 2 . 3 . 1 2 1 . 7 4 . Terminals 13 | . 2 . 3 . . 2 1 . 3 2 . Botnet 13 | . 2 . 3 . . 2 1 . 3 2 . Fabricators 1 | . . . . . . . . . 1 . . Fabnet 1 | . . . . . . . . . 1 . . Repair Stations . | . . . . . . . . . . . . Recycling Units 6 | . . . . . 1 . . . 3 2 . Reject 1 | . . . . . 1 . . . . . . Fedlink 4 | . . . . . . . . . 3 1 . Scrapoids 1 | . . . . . . . . . . 1 . Scanalyzers . | . . . . . . . . . . . . Garrison Access . | . . . . . . . . . . . . Data Cores Recovered 1 | . . . . . . . . . 1 . . Used . | . . . . . . . . . . . . Hacking Detections 25 | . 1 . 2 1 1 1 1 . 12 6 . Full Trace Events 1 | . 1 . . . . . . . . . . Feedback Events . | . . . . . . . . . . . . Feedback Blocked . | . . . . . . . . . . . . Robot Schematics Acquired . | . . . . . . . . . . . . Robots Built . | . . . . . . . . . . . . Authchips . | . . . . . . . . . . . . Time . | . . . . . . . . . . . . Total Robot Build Rating . | . . . . . . . . . . . . Part Schematics Acquired . | . . . . . . . . . . . . Parts Built . | . . . . . . . . . . . . Authchips . | . . . . . . . . . . . . Time . | . . . . . . . . . . . . Total Part Build Rating . | . . . . . . . . . . . . Part Studies Acquired 4 | . . . 2 . 2 . . . . . . Parts Repaired 4 | . . . . . . 3 . . 1 . . Time 134 | . . . . . . 84 . . 50 . . Parts Recycled . | . . . . . . . . . . . . Recycled Matter . | . . . . . . . . . . . . Retrieved Matter . | . . . . . . . . . . . . Retrieved Components 9 | . . . . . 9 . . . . . . Parts Scanalyzed . | . . . . . . . . . . . . Part Schematics Acquired . | . . . . . . . . . . . . Parts Damaged . | . . . . . . . . . . . . Bothacking | -11 -10 -10 -9 -9 -8 -8 -8 -8 -6 -5 -4 ------------ Run | Yrd Mat Min Mat Min Mat Sto Rec Scr Fac Fac Fac Used RIF Installer . | . . . . . . . . . . . . Robots Hacked . | . . . . . . . . . . . . Non-combat . | . . . . . . . . . . . . Combat . | . . . . . . . . . . . . Robot Hacks Applied . | . . . . . . . . . . . . Relay Couplers Released . | . . . . . . . . . . . . Fabnet Peak Effective % 3 | . . . . . . . . . . 3 1 Robots Rewired . | . . . . . . . . . . . . Allies Hacked . | . . . . . . . . . . . . Hacks Repelled . | . . . . . . . . . . . . Allies | -11 -10 -10 -9 -9 -8 -8 -8 -8 -6 -5 -4 -------- Run | Yrd Mat Min Mat Min Mat Sto Rec Scr Fac Fac Fac Total Allies 10 | . . 3 . . . . . 1 1 5 . Largest Group 3 | . . 3 3 . . . . 1 1 . . Highest-Rated Group 48 | . . 40 40 . . . . 30 48 . . Highest-Rated Ally 48 | . . 16 16 . . . . 30 48 . . Initial UFD Resources 50 | . . . . . . . . . 23 41 50 Total Orders 4 | . . . . . . . . . 2 2 . EXPLORE 4 | . . . . . . . . . 2 2 . Ally Attacks 84 | . . . 57 . . . . . 26 1 . Total Damage 2335 | . . . 707 . . . . . 814 814 . Kills 23 | . . . 10 . . . . . 8 5 . Allies Corrupted . | . . . . . . . . . . . . Allies Melted . | . . . . . . . . . . . . Intel | -11 -10 -10 -9 -9 -8 -8 -8 -8 -6 -5 -4 ------- Run | Yrd Mat Min Mat Min Mat Sto Rec Scr Fac Fac Fac Active Infowar (turns) 2751 | . . . . . . . . 495 1557 673 26 Terrain 1750 | . . . . . . . . 495 1255 . . Traps 885 | . . . . . . . . . 186 673 26 Machine Analysis 1462 | . . . . . . . . . 813 649 . Robot Analysis Total . | . . . . . . . . . . . . Derelict Logs Recovered 1 | . . 1 . . . . . . . . . Drone Launches 8 | . . . . . . . . . 4 4 . Drone Recoveries 6 | . . . . . . . . . 4 2 . Exploration | -11 -10 -10 -9 -9 -8 -8 -8 -8 -6 -5 -4 ------------- Run | Yrd Mat Min Mat Min Mat Sto Rec Scr Fac Fac Fac Turns Passed 10376 | 78 1199 369 872 530 1183 1595 541 1634 1608 673 94 Spaces Moved 6764 | 44 691 228 435 253 517 584 274 1247 1370 996 125 Core 5 | 5 . . . . . . . . . . . Treads 1089 | 39 691 228 131 . . . . . . . . Legs 3627 | . . . 304 253 517 584 274 1247 448 . . Wheels . | . . . . . . . . . . . . Hover 881 | . . . . . . . . . 465 309 107 Flight 1162 | . . . . . . . . . 457 687 18 Fastest Speed 30 | 50 160 160 160 175 105 116 190 120 32 30 40 Average Speed 120 | 147 160 160 178 176 118 170 190 128 79 52 45 Slowest Speed 245 | 160 160 160 190 182 245 190 190 190 190 105 115 Overloaded Moves . | . . . . . . . . . . . . Propulsion Burnouts . | . . . . . . . . . . . . Robots Hopped 10 | . . . . . . . . . 4 6 . Potential Cave-ins 2 | . . . . . . . 2 . . . . Cave-ins Triggered . | . . . . . . . . . . . . Exploration Rate (%) 46 | 5 96 35 51 55 28 82 45 84 40 27 4 Regions Visited 11 Branch Regions 5 Pre-discovered Areas 2 | . . 1 . . . . . . 1 . . Known Exits Taken . | . . . . . . . . . . . . Unknown Exits Taken 11 | 1 1 1 1 1 1 1 1 1 1 1 . Scrap Searched 5 | . . 1 . 3 . . . 1 . . . Spaces Dug 19 | . . . . . . . 4 . 12 3 . Terrain Destroyed 76 | . 23 . 5 . . . 33 . 12 3 . Melee 19 | . . . . . . . 4 . 12 3 . Projectile . | . . . . . . . . . . . . AOE 57 | . 23 . 5 . . . 29 . . . . Terrain Rammed . | . . . . . . . . . . . . Walls Destroyed . | . . . . . . . . . . . . Machines Disabled . | . . . . . . . . . . . . Actions | -11 -10 -10 -9 -9 -8 -8 -8 -8 -6 -5 -4 --------- Run | Yrd Mat Min Mat Min Mat Sto Rec Scr Fac Fac Fac Total 8370 | 57 743 232 484 305 947 1035 284 1279 1732 1109 163 Wait 966 | . 6 5 6 27 315 291 2 7 212 75 20 Move 6734 | 43 690 227 434 252 516 583 273 1246 1361 984 125 Hop 10 | . . . . . . . . . 4 6 . Pick Up 93 | 8 9 . 10 5 14 16 . 9 15 3 4 Fast Attach 37 | . 1 . 1 . 4 6 . 2 13 6 4 Attach 67 | 6 . . 4 2 17 12 . 3 14 7 2 Detach 14 | . . . . . . 1 . 2 4 5 2 Swap 24 | . 6 . 2 1 1 5 2 1 5 . 1 Drop 51 | . 7 . 3 2 4 3 . 9 12 6 5 Fire 19 | . 12 . 3 . . . 3 . 1 . . Melee 314 | . 12 . 21 16 75 80 4 . 89 17 . Ram . | . . . . . . . . . . . . Kick 1 | . . . . . 1 . . . . . . Crush . | . . . . . . . . . . . . Escape Stasis . | . . . . . . . . . . . . Rewire . | . . . . . . . . . . . . Trap 40 | . . . . . . 38 . . 2 . . Miscellaneous . | . . . . . . . . . . . . Route ------- -11/Scrapyard -10/Materials (discovered 5 exits: *Mat x3 / [*Min] / [*Sub]) -10/Mines (discovered 3 exits: *Mat / [*Exi] / [*Sub]) -9/Materials (discovered 3 exits: *Mat / *Min x2) -9/Mines -8/Materials (discovered 2 exits: *Sto x2) -8/Storage (discovered 2 exits: [*Fac] / *Rec) -8/Recycling (discovered 2 exits: *Fac / *Scr) -8/Scraptown -6/Factory (discovered 2 exits: *Fac / [*Ext]) -5/Factory -4/Factory History --------- Turn | Location | Event 3 | -11/Scrapyard | Discovered new exit (range 16) 79 | -11/Scrapyard | Entered Materials 309 | -10/Materials | Build established: Mutant 437 | -10/Materials | Discovered new exit (range 10) 485 | -10/Materials | Discovered new exit (range 15) 562 | -10/Materials | Discovered new exit (range 5) 737 | -10/Materials | Discovered new exit (range 5) 904 | -10/Materials | Discovered new exit (range 8) 1278 | -10/Materials | Entered Mines 1279 | -10/Mines | Learned location of Storage (-8) 1297 | -10/Mines | Assembled infested the area 1302 | -10/Mines | Assisted by a Guerilla fighting off Assembled 1423 | -10/Mines | Learned Materials emergency access door positions 1510 | -10/Mines | Deemed a non-threat by the Exiles lab entrance 1510 | -10/Mines | Discovered new exit (range 5) 1564 | -10/Mines | Discovered new exit (range 11) 1612 | -10/Mines | Discovered new exit (range 10) 1635 | -10/Mines | Assisted by bots powering up and referring to "LRC-V3" 1647 | -10/Mines | Entered Materials 1647 | -9/Materials | Accompanied by 3 allies 1647 | -9/Materials | Evolved 2 slots: Utility x2 2032 | -9/Materials | Discovered new exit (range 16) 2317 | -9/Materials | Discovered new exit (range 9) 2325 | -9/Materials | Discovered new exit (range 16) 2406 | -9/Materials | Central database locked down 2519 | -9/Materials | Entered Mines 2569 | -9/Mines | Discovered new exit (range 8) 3049 | -9/Mines | Entered Materials 3049 | -8/Materials | Evolved 2 slots: Propulsion x2 3206 | -8/Materials | Discovered new exit (range 7) 3334 | -8/Materials | Build established: Scavenger-Mutant 3759 | -8/Materials | Discovered new exit (range 6) 3780 | -8/Materials | Lost 4 parts (1p2n1u) 3861 | -8/Materials | Build established: Mutant 4068 | -8/Materials | Core integrity fell below 50% 4094 | -8/Materials | Lost 6 parts (2p3n1w) 4162 | -8/Materials | System corruption reached 10% 4232 | -8/Materials | Entered Storage 4547 | -8/Storage | Repaired Hvy. Hammer+ 4773 | -8/Storage | Core integrity fell below 20% 4957 | -8/Storage | Lost 3 parts (1p1n1u) 5241 | -8/Storage | Build established: Scavenger-Mutant 5284 | -8/Storage | Discovered new exit (range 5) 5771 | -8/Storage | Repaired Aluminum Leg 5799 | -8/Storage | Repaired Aluminum Leg 5819 | -8/Storage | Used back door to open Recycling access 5819 | -8/Storage | Discovered new exit (range 5) 5827 | -8/Storage | Entered Recycling 6177 | -8/Recycling | Discovered new exit (range 5) 6323 | -8/Recycling | Scanned before Scraplab entrance 6349 | -8/Recycling | Entered Scraplab 6364 | -8/Recycling | Discovered new exit (range 2) 6368 | -8/Recycling | Entered Scraptown 6792 | -8/Scraptown | Visited Comm Corps 6840 | -8/Scraptown | Visited Red Mages 6877 | -8/Scraptown | Visited IN-MT5's Study 6912 | -8/Scraptown | Visited Fellowship of the Rings 6922 | -8/Scraptown | Visited Cave Peace 6933 | -8/Scraptown | Build established: Scavenger-Gladiator 7083 | -8/Scraptown | Received an X-ray algorithm 7343 | -8/Scraptown | Visited Assassins FH 7359 | -8/Scraptown | Visited UFD Registry 7362 | -8/Scraptown | Registered with UFD as "Nanorider" 7403 | -8/Scraptown | Visited Cartography Club 7485 | -8/Scraptown | Visited Junk Repository 7647 | -8/Scraptown | Visited Infowarlord's Domain 7679 | -8/Scraptown | Visited Scrap Suit Storage 7727 | -8/Scraptown | Visited A0-MCA Data Center 7739 | -8/Scraptown | Given a B- rating by A0-MCA 7744 | -8/Scraptown | Found A0-MCA's Component Scanner 7767 | -8/Scraptown | Visited Botcube Research 7784 | -8/Scraptown | Lrg. Botcube activated 7800 | -8/Scraptown | Found Lrg. Botcube 7886 | -8/Scraptown | Visited Analyses Database 7922 | -8/Scraptown | Met Optimus 7922 | -8/Scraptown | Accepted into 0bPrime 7997 | -8/Scraptown | Discovered new exit (range 3) 8002 | -8/Scraptown | Entered Factory 8002 | -6/Factory | Evolved 4 slots: Propulsion x1, Utility x3 8030 | -6/Factory | Ran an X-ray algorithm 8042 | -6/Factory | Ran an X-ray algorithm 8296 | -6/Factory | Repaired Adv. Terrain Scanner 8454 | -6/Factory | Attached CPS modules to L-41 Fighter 8903 | -6/Factory | Discovered new exit (range 10) 8975 | -6/Factory | Lrg. Botcube activated 8989 | -6/Factory | Lrg. Botcube completed mutation into legged form, armed with 1 gun, 1 cannon 9052 | -6/Factory | Loaded intel: 8 recycling unit locations 9095 | -6/Factory | Learned location of Protoforge (-2) 9375 | -6/Factory | Core integrity fell below 50% 9434 | -6/Factory | Destroyed 7 combat bots 9437 | -6/Factory | Lost 12 parts (1p6n4u1w) 9446 | -6/Factory | Garrison activated, responded to threat 9582 | -6/Factory | Core integrity fell below 20% 9604 | -6/Factory | Discovered new exit (range 16) 9610 | -6/Factory | Entered another Factory area 9610 | -5/Factory | Evolved 2 slots: Utility x1, Weapon x1 9769 | -5/Factory | Lost 3 parts (2n1u) 9831 | -5/Factory | Spotted B-75 Beast 10044 | -5/Factory | Build established: Mutant 10138 | -5/Factory | Loaded intel: 8 recycling unit locations 10235 | -5/Factory | Noticed UFD Elites at a Recycling Unit 10259 | -5/Factory | Scrapoids reinforcements arrived? 10278 | -5/Factory | Discovered new exit (range 10) 10283 | -5/Factory | Entered another Factory area 10283 | -4/Factory | Evolved 2 slots: Utility x2 10290 | -4/Factory | Lost 5 allies 10377 | -4/Factory | Self-destructed Last Messages --------------- 10290_ ALERT: All DSF locations entering lockdown mode. 10291_ Acquired Imp. Antigrav System. 10298_ K-01 Serf cleans the Pressure Siphon. 10307_ Acquired Imp. Antigrav System. 10314_ K-01 Serf pushes S-27 Virus. 10315_ Acquired Imp. Antigrav System. 10315_ K-01 Serf pushes S-27 Virus. 10316_ Acquired Imp. Antigrav System. 10317_ K-01 Serf pushes S-27 Virus. 10343_ Dropped Cmb. Gravmag System. 10344_ Dropped Adv. Trap Scanner. 10344_ Dropped Hcp. Storage Unit. 10345_ Dropped CPS Tube. 10345_ Acquired Cmb. Gravmag System. 10346_ Dropped Cmb. Gravmag System. 10347_ Acquired Hcp. Storage Unit. 10369_ R-10 Processor collects CPS Tube. 10373_ R-10 Processor collects Cmb. Gravmag System. Map ----- +----------------------------------------------------+ | ????????????????????????????????????????????? | | ????????????????????????????????????????????? | | ????????????????????????????????????????????? | | ????????????????????????????????????????????? | | ????????????????????????????????????????????? | | ????????????????????????????????????????????? | | ????????????????????????????????????????????? | | ????????????????????????????????????????????? | | ????????????????????????????????????????????? | | ????????????????????????????????????????????? | | ????????????????????????????????????????????? | | ????????????#?# ?????#??????????????????????? | | ???????????? ? ?? ? #??????????????????????? | | ???????????" " ???????????????????????? | | ???????????" " #??????????????????????? | | ???????#?" " " ! [ #??????????????????????? | | ???????# " " " ???????????????????????? | | ???????# " " " ???????????????????????? | | ???????# " " " ???????????????????????? | | ???????# " " " ????????????????????????? | | ???????# " " " "" "?????????????????????????? | | ???????? " " " ""???????????######??????????? | | ?????????? "??????????? #??????????? | | ???????????#+#"############ #??????????? | | ?########### + """ #??????????? | | ? # ########@# """ #??????????? | | """"""""" # #??????# #! """ #??????????? | | ! / #??????# #? #??????????? | | """"""""" # ^########+########??????????? | | ? # # #????????????????? | | ?########### # #????????????????? | | ???????????# # #????????????????? | | ???????????# # #????????????????? | | ???????????# # """ """ #????????????????? | | ??########## # """ """ #????????????????? | | ??# """" # # """ """ #????????????????? | | ??# ""S"" # # #????????????????? | | ??# "" "" # #####+###########??????????? | | ??# # """ #??????????? | | ??# # ""F"" #??????????? | | ??# """ # "" "" #??????????? | | ??# """ + #??????????? | | ??# """ # #??????????? | | ??# # | ##########??????????? | | ############ #???????????????????? | | #???????????????????? | | +???????????????????? | | """ #???????????????????? | | ^ """ #???????????????????? | | """ #???????????????????? | +----------------------------------------------------+ Best States ------------- Heat Dissipation 43 Energy Generation 18 Energy Capacity 300 Matter Stores 300 Matter Capacity 300 Sight Range 16 Terrain Scan Range 20 Terrain Scan Density 10 Armor Coverage 675 Core Shielding 20 Propulsion Shielding 66 Weapon Shielding 66 Evasion (%) 72 Melee Accuracy 14 Core Analysis 6 Recoil Reduction 2 Offensive Hacking 22 Defensive Hacking 10 Trap Extractor Capacity 6 Item Schematics ----------------- None Robot Schematics ------------------ None Fabricated ------------ Nothing Repaired ---------- Hvy. Hammer | 16% | -8/Storage Aluminum Leg | 6% | -8/Storage Aluminum Leg | 11% | -8/Storage Adv. Terrain Scanner | 33% | -6/Factory Studied --------- Hammer | -9/Materials | Hacked Imp. Aluminum Leg | -9/Materials | Hacked Hvy. Hammer | -8/Materials | Hacked Flail | -8/Materials | Hacked Alien Tech Used ----------------- None Achievements -------------- Wiki Contributor Challenges ------------ None Game ------ Seed CentriumTripodAutogun Manual? 0 Play Time 01:16:18 Cumulative 312.8 hours Start 2026.09.21 @ 18:26:27 End 2026.09.21 @ 19:48:45 Sessions 1 Manual Loads 0 Difficulty Rogue Special Mode None Game No. 341 Rogue 341 Adventurer 0 Explorer 0 Win Type - Total 3 Types 3/0/0/0/0/0/0/0/0/0 Lore% 51 Gallery% 59 Achievement% 46 Wizard Run 0 Options --------- Layout 1 ASCII 0 Keyboard 0 Movement Numpad Keybinds 0 Fullscreen 2 Font 24/Smallcaps Map View 50x35 Zoom Use 0% Tactical HUD 1 Map Filters NONE Filters NONE Steam 1 RUN: 68f19ce5-6b89-4fde-bbdf-3b24d5549d74